bitfinex-derivatives/quotes_ETHF0:USTF0_20250929
["timestamp","ask_amount","ask_price","bid_price","bid_amount"]
[1759116006113,3.64586,4107.6,4107.5,0.4394]
[1759116006314,3.64586,4107.6,4107.5,1.76941756]
[1759116006516,3.64586,4107.6,4107.5,0.8841]
[1759116006708,4.07736,4107.6,4107.5,0.8841]
[1759116007020,4.07989846,4107.6,4107.5,0.88647717]
[1759116007213,3.86569846,4107.6,4107.5,0.88647717]
[1759116007420,3.64839846,4107.6,4107.5,0.88647717]
[1759116007922,3.64839846,4107.6,4107.5,1.77179473]
[1759116010928,0.44059846,4107.6,4107.5,1.77179473]
[1759116024233,0.44059846,4107.6,4107.5,2.01879473]
[1759116024829,3.2078,4108.1,4107.5,2.01879473]
[1759116025026,1.09471,4109.3,4108.1,0.3167]
[1759116025227,0.43797,4108.5,4108.4,0.4237]
[1759116025533,0.43794,4108.8,4108.7,0.4237]
[1759116025725,0.43794,4108.8,4108.7,0.9874]
[1759116025923,0.00249846,4108.8,4108.7,0.9874]
[1759116026431,0.00249846,4108.8,4108.7,2.01054306]
[1759116033135,0.00249846,4108.8,4108.7,1.76354306]
[1759116033440,0.56789846,4108.8,4108.7,0.5233]
[1759116033638,0.85554,4108.7,4108.6,0.3167]
[1759116033841,1.00334,4108.7,4108.6,0.5637]
[1759116034242,1.00334,4108.7,4108.6,0.3167]
[1759116034540,1.00334,4108.7,4108.6,0.5637]
[1759116035643,0.85554,4108.7,4108.6,0.9874]
[1759116036544,0.85554,4108.7,4108.6,0.7404]
[1759116036747,0.85554,4108.7,4108.6,0.9874]
[1759116036935,0.85554,4108.7,4108.6,0.7404]
[1759116037240,0.85554,4108.7,4108.6,0.9874]
[1759116041142,0.43794,4108.7,4108.6,0.9874]
[1759116041643,0.43794,4108.7,4108.6,2.01054306]
[1759116041946,0.44042846,4108.8,4108.7,0.7404]
[1759116042341,0.00249846,4108.8,4108.7,0.7404]
[1759116044647,3.2078,4109.7,4109.2,0.2066]
[1759116044844,3.85223,4109.7,4109.6,0.7404]
[1759116045039,4.77757144,4109.7,4109.6,0.7808]
[1759116045247,4.77757144,4109.7,4109.6,0.7703]
[1759116045643,4.63224013,4109.7,4109.6,0.7703]
[1759116046048,0.8555,4109.1,4109.0,0.4453]
[1759116046244,1.56987313,4109.1,4109.0,0.6519]
[1759116046440,1.56987313,4109.1,4109.0,0.8989]
[1759116046845,1.42207313,4109.1,4109.0,0.8989]
[1759116047050,0.4379,4109.1,4109.0,1.116]
[1759116050140,0.43784,4109.6,4109.5,0.1286]
[1759116050342,0.43784,4109.6,4109.0,0.7993]
[1759116050343,1.0033,4109.1,4109.0,0.4453]
[1759116050649,1.42238708,4109.1,4109.0,1.116]
[1759116050950,1.42238708,4109.1,4109.0,0.869]
[1759116051254,1.42238708,4109.1,4109.0,1.116]
[1759116052251,1.42238708,4109.1,4109.0,0.869]
[1759116052441,1.42238708,4109.1,4109.0,1.116]
[1759116052852,1.57018708,4109.1,4109.0,0.4453]
[1759116053049,0.5654,4109.0,4108.9,3.2078]
[1759116053244,1.13228708,4109.0,4108.9,3.5245]
[1759116056058,1.13228708,4109.0,4108.9,3.7311]
[1759116057052,0.98448708,4109.0,4108.9,3.7311]
[1759116057351,0.56688708,4109.0,4108.9,4.96554306]
[1759116060352,0.4379,4109.1,4109.0,0.8786]
[1759116065150,0.43789,4109.2,4109.0,0.5406]
[1759116065457,0.43789,4109.2,4109.1,1.77814306]
[1759116067263,1.23066369,4109.2,4109.1,0.755]
[1759116068144,1.44246369,4109.2,4109.1,0.755]
[1759116068558,1.59096369,4109.2,4109.1,0.5437]
[1759116069156,1.00486369,4109.2,4109.1,1.77814306]
[1759116070365,0.56697369,4109.2,4109.1,2.02414306]
[1759116070660,0.43788,4109.3,4109.2,0.338]
[1759116070855,0.43788,4109.3,4109.2,1.77814306]
[1759116071061,1.00510085,4109.3,4109.2,1.77814306]
[1759116074160,0.56722085,4109.3,4109.2,1.77814306]
[1759116077068,1.01432085,4109.3,4109.2,0.755]
[1759116077262,1.16302085,4109.3,4109.2,0.338]
[1759116077762,1.01432085,4109.3,4109.2,0.5471]
[1759116078588,0.4471,4109.1,4109.0,0.3301]
[1759116078865,1.03371,4109.0,4108.9,3.5379]
[1759116079060,1.60093085,4109.0,4108.9,3.747]
[1759116079865,1.45223085,4109.0,4108.9,3.747]
[1759116081969,1.45223085,4109.0,4108.9,3.971]
[1759116084368,1.59983085,4109.0,4108.9,3.971]
[1759116084671,1.45223085,4109.0,4108.9,3.971]
[1759116085560,1.00513085,4109.0,4108.9,3.971]
[1759116085864,0.43791,4109.0,4108.9,3.971]
[1759116086167,1.00040781,4109.0,4108.9,3.971]
[1759116086369,1.21200781,4109.0,4108.9,4.85545316]
[1759116086769,1.41850781,4109.0,4108.9,3.747]
[1759116086972,1.00365,4108.6,4108.5,0.3383]
[1759116087269,1.00367,4108.4,4108.3,0.3383]
[1759116087469,0.4181,4107.9,4107.8,3.2078]
[1759116087662,0.98059781,4107.9,4107.8,3.2078]
[1759116087863,1.41861781,4107.9,4107.8,3.2078]
[1759116088062,1.56621781,4107.9,4107.8,0.3383]
[1759116088472,1.56621781,4107.9,4107.8,0.5567]
[1759116088674,1.41861781,4107.9,4107.8,0.5567]
[1759116089259,0.43806,4107.6,4107.5,0.12597717]
[1759116089471,0.85616,4107.6,4107.5,0.12597717]
[1759116089769,0.85616,4107.6,4107.5,0.68267717]
[1759116090072,0.85616,4107.6,4107.5,0.88777717]
[1759116090872,1.00376,4107.6,4107.5,0.34067717]
[1759116091370,0.85616,4107.6,4107.5,0.68747717]
[1759116092273,1.00376,4107.6,4107.5,0.68747717]
[1759116093366,0.85616,4107.6,4107.5,0.68747717]
[1759116093566,0.85616,4107.6,4107.5,0.89257717]
[1759116097766,1.00376,4107.6,4107.5,0.46907717]
[1759116099677,1.00376,4107.6,4107.5,0.68747717]
[1759116101775,0.85616,4107.6,4107.5,0.68747717]
[1759116102771,0.68406,4107.6,4107.5,0.89257717]
[1759116103673,1.10216,4107.6,4107.5,0.46907717]
[1759116103869,1.10216,4107.6,4107.5,0.68747717]
[1759116104070,1.00376,4107.6,4107.5,0.68747717]
[1759116104269,1.24976,4107.6,4107.5,0.68747717]
[1759116104967,1.10216,4107.6,4107.5,0.68747717]
[1759116105173,1.24976,4107.6,4107.5,0.68747717]
[1759116105472,1.10216,4107.6,4107.5,0.68747717]
[1759116105672,1.10216,4107.6,4107.5,0.89257717]
[1759116107778,0.89566,4107.6,4107.5,0.89257717]
[1759116108379,1.45595418,4107.6,4107.5,0.89257717]
[1759116110582,1.81005418,4107.6,4107.5,0.00237717]
[1759116110881,1.81005418,4107.6,4107.5,0.34067717]
[1759116111280,1.81005418,4107.6,4107.5,0.00237717]
[1759116111884,42.61005418,4107.6,4107.5,0.00237717]
[1759116114078,42.61005418,4107.6,4107.0,0.3322]
[1759116114079,0.2239,4107.1,4107.0,0.3322]
[1759116114277,0.87066,4106.6,4106.5,0.6705]
[1759116114476,1.11666,4106.6,4106.5,0.8932]
[1759116114681,1.82427166,4106.6,4106.5,0.8932]
[1759116114881,42.47727166,4106.6,4106.5,0.8932]
[1759116115075,42.47917764,4106.6,4106.5,0.89609171]
[1759116121987,41.80067764,4106.6,4106.5,1.78054487]
[1759116122286,42.04667764,4106.6,4106.5,1.78054487]
[1759116122887,42.25527764,4106.6,4106.5,1.78054487]
[1759116123782,42.47917764,4106.6,4106.5,1.78054487]
[1759116124492,42.47917764,4106.6,4106.5,0.89609171]
[1759116124686,42.62617764,4106.6,4106.5,0.89609171]
[1759116125692,42.62617764,4106.6,4106.5,0.67339171]
[1759116126387,42.62617764,4106.6,4106.5,0.33509171]
[1759116126699,1.01775,4105.8,4105.7,3.7499]
[1759116126983,1.11675,4105.8,4105.7,3.9726]
[1759116127594,1.11675,4105.8,4105.7,3.97573769]
[1759116127793,1.11675,4105.8,4105.7,0.76793769]
[1759116130483,0.43825,4105.8,4105.7,1.65239085]
[1759116130686,0.68425,4105.8,4105.7,1.65239085]
[1759116132096,0.43825,4105.8,4105.7,1.65239085]
[1759116136101,0.43822,4106.1,4105.9,0.43823]
[1759116136302,3.2078,4106.2,4106.1,0.7415]
[1759116136496,0.6842,4106.3,4106.0,1.02045316]
[1759116136497,0.6842,4106.3,4106.2,0.7415]
[1759116137798,0.8586,4106.3,4106.2,0.7415]
[1759116138002,0.4382,4106.3,4106.2,0.7415]
[1759116140108,0.00190598,4106.6,4106.5,0.8775]
[1759116140305,0.00190598,4106.6,4106.5,4.96975316]
[1759116144715,0.4381,4107.2,4107.1,0.7515]
[1759116145013,0.4381,4107.2,4107.1,1.63595316]
[1759116145711,0.44077654,4107.2,4107.1,1.63595316]
[1759116147115,0.00267654,4107.2,4107.1,1.63595316]
[1759116148316,0.00267654,4107.2,4107.1,1.77555641]
[1759116149718,0.00267654,4107.2,4107.1,0.9975]
[1759116152315,0.43837654,4107.2,4107.1,0.9975]
[1759116153225,0.00267654,4107.2,4107.1,0.9975]
[1759116170933,0.00267654,4107.2,4107.1,1.4356]
[1759116172536,0.87646654,4107.2,4107.1,0.9975]
[1759116173043,0.87646654,4107.2,4107.1,0.781]
[1759116173339,0.87646654,4107.2,4107.1,0.9975]
[1759116174239,1.43966826,4107.2,4107.1,0.9975]
[1759116176839,1.58906826,4107.2,4107.1,0.5659]
[1759116177136,1.58906826,4107.2,4107.1,0.3199]
[1759116177841,0.5658,4107.1,4107.0,3.2078]
[1759116178042,1.12900172,4107.1,4107.0,3.5445]
[1759116179242,1.12900172,4107.1,4107.0,3.6722]
[1759116179441,1.12900172,4107.1,4106.8,0.246]
[1759116179442,6.12900172,4107.1,4106.8,0.246]
[1759116179642,0.6466,4106.2,4106.1,0.7683]
[1759116179849,0.6466,4106.2,4106.1,1.0143]
[1759116180535,1.4175105,4106.2,4106.1,1.0143]
[1759116180730,1.5669105,4106.2,4106.1,0.7683]
[1759116181143,1.5669105,4106.2,4106.1,0.5544]
[1759116181340,1.5669105,4106.2,4106.1,0.3367]
[1759116181537,1.4175105,4106.2,4106.1,0.5544]
[1759116181741,1.0011105,4106.2,4106.1,1.79235641]
[1759116181937,3.85433,4106.8,4106.7,0.2177]
[1759116182245,1.00060781,4106.8,4106.7,0.7683]
[1759116182441,1.41700781,4106.8,4106.7,0.7683]
[1759116182744,6.56640781,4106.8,4106.7,0.3367]
[1759116183135,6.56640781,4106.8,4106.7,0.5544]
[1759116183745,6.81240781,4106.8,4106.7,0.5544]
[1759116183937,0.77087781,4106.8,4106.7,0.7683]
[1759116184141,0.56247781,4106.8,4106.7,1.79235641]
[1759116184337,0.43812,4106.9,4106.7,1.45565641]
[1759116184542,0.43812,4106.9,4106.8,0.7683]
[1759116184744,0.43811,4107.1,4106.8,0.4316]
[1759116184940,0.00267654,4107.2,4107.1,0.2177]
[1759116185147,0.77309938,4107.2,4107.1,0.7683]
[1759116186542,0.56469938,4107.2,4107.1,0.7683]
[1759116186745,0.00267654,4107.2,4107.1,1.79235641]
[1759116190551,0.00267654,4107.2,4107.1,2.03835641]
[1759116192654,3.2078,4108.4,4108.3,0.5529]
[1759116192655,3.6297,4108.4,4108.3,0.5529]
[1759116192846,4.28168352,4108.4,4108.3,0.5529]
[1759116193249,4.43108352,4108.4,4108.3,0.5529]
[1759116193657,4.43364152,4108.4,4108.3,0.5529]
[1759116193953,5.02960152,4108.4,4108.3,0.5529]
[1759116195450,4.88020152,4108.4,4108.3,0.5529]
[1759116197651,5.02960152,4108.4,4108.3,0.5529]
[1759116197949,4.78360152,4108.4,4108.3,0.334]
[1759116198142,1.0093,4108.1,4108.0,0.334]
[1759116198347,1.57328352,4108.1,4108.0,0.334]
[1759116198548,1.00935,4107.6,4107.5,3.8834]
[1759116198954,1.42375938,4107.6,4107.5,3.8834]
[1759116199754,0.56380938,4107.6,4107.5,4.1018]
[1759116199947,1.00188205,4107.7,4107.5,4.1018]
[1759116200149,0.56383205,4107.6,4107.5,4.1018]
[1759116200756,0.77313205,4107.6,4107.5,4.1018]
[1759116201552,0.43805,4107.7,4107.6,0.7713]
[1759116201860,1.21119179,4107.7,4107.6,0.7713]
[1759116202257,1.57319179,4107.7,4107.6,0.5529]
[1759116202757,1.42379179,4107.7,4107.6,0.7713]
[1759116203451,1.00189179,4107.7,4107.6,0.7713]
[1759116208160,0.56384179,4107.7,4107.6,0.7713]
[1759116208359,0.43799,4108.2,4108.1,0.7757]
[1759116208657,1.002024,4108.2,4108.1,1.79975641]
[1759116210353,1.002024,4108.2,4108.1,1.66048207]
[1759116212058,1.215424,4108.2,4108.1,1.66048207]
[1759116215657,1.441124,4108.2,4108.1,1.66048207]
[1759116215855,1.441124,4108.2,4108.1,0.7757]
[1759116216055,1.591724,4108.2,4108.1,0.7757]
[1759116216665,1.441124,4108.2,4108.1,0.7757]
[1759116218366,1.591724,4108.2,4108.1,0.3335]
[1759116218667,0.87715,4107.6,4107.5,3.7727]
[1759116218864,0.65145,4107.6,4107.5,3.7727]
[1759116219168,0.65145,4107.6,4107.5,4.1062]
[1759116219368,1.21667443,4107.6,4107.5,4.1062]
[1759116219758,1.00327443,4107.6,4107.5,4.1062]
[1759116222665,1.00327443,4107.6,4107.5,0.8984]
[1759116223468,0.56522443,4107.6,4107.5,0.8984]
[1759116224666,0.56522443,4107.6,4107.5,1.1444]
[1759116228471,1.00327443,4107.6,4107.5,1.1444]
[1759116228872,1.00327443,4107.6,4107.5,1.58246]
[1759116229065,0.56522443,4107.6,4107.5,1.58246]
[1759116229271,0.56522443,4107.6,4107.5,2.46724207]
[1759116229571,0.56522443,4107.6,4107.5,1.58246]
[1759116231267,0.56522443,4107.6,4107.5,2.46724207]
[1759116231580,3.861728,4108.4,4108.3,0.7757]
[1759116231873,4.42259594,4108.4,4108.3,1.66048207]
[1759116232375,1.21479594,4108.4,4108.3,1.66048207]
[1759116237473,1.00139594,4108.4,4108.3,1.66048207]
[1759116240279,0.002558,4108.4,4108.3,1.90648207]
[1759116240975,3.64572,4108.9,4108.8,0.4481]
[1759116241183,4.19946678,4108.9,4108.8,1.64858207]
[1759116241980,0.9940398,4108.9,4108.8,1.65096858]
[1759116243380,0.44029302,4108.9,4108.8,1.65096858]
[1759116245483,0.00237302,4108.9,4108.8,2.53575065]
[1759116245682,0.00237302,4108.9,4108.8,1.65096858]
[1759116248793,0.00237302,4108.9,4108.8,2.53575065]
[1759116250894,0.00237302,4108.9,4108.8,1.65096858]
[1759116252682,0.00237302,4108.9,4108.8,2.53575065]
[1759116253893,0.00237302,4108.9,4108.8,1.65096858]
[1759116255799,0.21897302,4108.9,4108.8,1.65096858]
[1759116256493,0.00237302,4108.9,4108.8,1.65096858]
[1759116256798,0.21897302,4108.9,4108.8,1.65096858]
[1759116257494,0.21897302,4108.9,4108.8,2.08889858]
[1759116258795,0.65688302,4108.9,4108.8,0.76618651]
[1759116258996,1.02898302,4108.9,4108.8,0.31808651]
[1759116259201,1.02898302,4108.9,4108.8,0.34178651]
[1759116259601,1.02898302,4108.9,4108.8,1.22656858]
[1759116260699,0.87968302,4108.9,4108.8,1.67696858]
[1759116260906,0.44028302,4108.9,4108.8,1.67696858]
[1759116261298,0.65688302,4108.9,4108.8,1.67696858]
[1759116263008,0.65688302,4108.9,4108.8,1.92296858]
[1759116267402,0.44028302,4108.9,4108.8,1.92296858]
[1759116268011,0.00237302,4108.9,4108.8,1.92296858]
[1759116272211,0.00237302,4108.9,4108.8,2.06135851]
[1759116280715,0.66362,4109.8,4109.7,0.7542]
[1759116280916,1.21178213,4109.8,4109.7,1.777372]
[1759116281610,1.41778213,4109.8,4109.7,1.777372]
[1759116281814,1.42006087,4109.8,4109.7,1.777372]
[1759116285712,1.56936087,4109.8,4109.7,1.777372]
[1759116288525,1.42006087,4109.8,4109.7,1.777372]
[1759116291224,1.56936087,4109.8,4109.7,1.777372]
[1759116291418,1.56936087,4109.8,4109.7,1.570672]
[1759116291618,1.42006087,4109.8,4109.7,1.570672]
[1759116293730,1.42006087,4109.8,4109.7,1.777372]
[1759116296122,0.55044087,4109.8,4109.7,1.777372]
[1759116296331,0.55044087,4109.8,4109.7,2.461192]
[1759116296823,0.00227874,4109.8,4109.7,2.461192]
[1759116297323,0.4377,4111.0,4110.8,0.3085]
[1759116297531,0.54833198,4110.9,4110.8,0.7281]
[1759116298115,0.55005464,4110.9,4110.8,0.7281]
[1759116298727,0.55005464,4110.9,4110.8,1.751272]
[1759116301230,0.76885464,4110.9,4110.8,1.751272]
[1759116301827,0.55005464,4110.9,4110.8,1.751272]
[1759116302230,0.00172266,4110.9,4110.8,1.751272]
[1759116306635,0.22052266,4110.9,4110.8,1.751272]
[1759116308238,0.00172266,4110.9,4110.8,1.751272]
[1759116312334,0.00172266,4110.9,4110.8,1.997272]
[1759116318337,0.00172266,4110.9,4110.8,2.434982]
[1759116334351,0.00172266,4110.9,4110.8,2.29513786]
[1759116337749,3.2078,4113.0,4112.2,0.3126]
[1759116337948,0.648,4112.8,4112.7,0.7353]
[1759116338150,1.19297101,4112.8,4112.7,0.7353]
[1759116338748,1.19489544,4112.8,4112.7,0.73787857]
[1759116339147,1.41359544,4112.8,4112.7,1.62120643]
[1759116341446,1.41359544,4112.8,4112.7,0.73787857]
[1759116341654,6.56229544,4112.8,4112.7,0.00257857]
[1759116343745,0.4292,4112.1,4112.0,1.32722786]
[1759116343950,0.5779,4112.1,4112.0,1.32722786]
[1759116344755,0.5779,4112.1,4112.0,1.32945783]
[1759116345454,0.5779,4112.1,4112.0,1.54355783]
[1759116346458,6.11302848,4112.1,4112.0,0.00222997]
[1759116346961,6.11302848,4112.1,4111.0,3.3391]
[1759116346962,1.01556,4111.2,4111.1,0.3126]
[1759116347163,1.55069392,4111.2,4111.1,0.3126]
[1759116347557,42.35069392,4111.2,4111.1,0.3126]
[1759116347950,42.35069392,4111.2,4111.1,0.31495726]
[1759116350260,42.35069392,4111.2,4111.1,0.00235726]
[1759116351353,1.01563,4110.6,4110.5,0.3126]
[1759116351554,0.86698,4110.1,4110.0,1.22872786]
[1759116351757,0.86698,4110.1,4110.0,1.43732786]
[1759116352249,0.86698,4110.1,4110.0,1.74992786]
[1759116352454,0.86698,4110.1,4110.0,1.75229181]
[1759116354655,0.86698,4110.1,4110.0,0.66036395]
[1759116354856,1.01628,4110.1,4110.0,0.31496395]
[1759116355560,1.01628,4110.1,4110.0,0.44886395]
[1759116357255,1.26128,4110.1,4110.0,0.44886395]
[1759116359566,1.26128,4110.1,4110.0,0.66406395]
[1759116360962,1.26128,4110.1,4110.0,0.00236395]
[1759116361162,1.26128,4110.1,4110.0,0.31226395]
[1759116361860,1.26128,4110.1,4110.0,0.44616395]
[1759116362068,1.26128,4110.1,4110.0,0.66136395]
[1759116362967,1.11198,4110.1,4110.0,0.66136395]
[1759116363562,3.2078,4110.7,4110.1,0.3099]
[1759116363759,3.2078,4110.7,4110.6,1.62452786]
[1759116363760,4.32082,4110.7,4110.6,1.62452786]
[1759116364061,0.43772,4110.7,4110.6,0.7412]
[1759116364770,0.86802,4110.7,4110.6,0.7412]
[1759116366064,0.65672,4110.7,4110.6,0.7412]
[1759116366365,0.219,4111.1,4111.0,0.8751]
[1759116366563,0.65667,4111.1,4111.0,1.75842786]
[1759116374174,1.188841,4111.1,4111.0,1.75842786]
[1759116376066,0.969841,4111.1,4111.0,1.75842786]
[1759116377776,1.174941,4111.1,4111.0,1.75842786]
[1759116382465,1.387541,4111.1,4111.0,1.75842786]
[1759116382670,1.536541,4111.1,4111.0,0.3099]
[1759116383171,42.336541,4111.1,4111.0,0.3099]
[1759116384268,1.02152,4110.7,4110.6,0.2265]
[1759116384477,1.79907363,4110.7,4110.6,1.10982786]
[1759116384781,1.64997363,4110.7,4110.6,1.42052786]
[1759116385182,1.64997363,4110.7,4110.6,1.62582786]
[1759116388281,1.64997363,4110.7,4110.6,0.3107]
[1759116388486,1.79907363,4110.7,4110.6,0.3107]
[1759116389681,5.00687363,4110.7,4110.6,0.3107]
[1759116389883,0.64606,4110.3,4110.2,0.88332786]
[1759116390190,0.87248,4110.2,4110.1,0.4318]
[1759116390689,0.87248,4110.2,4110.1,0.7425]
[1759116391187,0.87248,4110.2,4110.1,1.62582786]
[1759116391489,1.40551435,4110.2,4110.1,1.62582786]
[1759116394490,1.17911435,4110.2,4110.1,1.62582786]
[1759116396390,1.17911435,4110.2,4110.1,1.7652578]
[1759116397185,1.55461435,4110.2,4110.1,0.5372]
[1759116397386,1.79961435,4110.2,4110.1,0.3107]
[1759116402394,5.00741435,4110.2,4110.1,0.3107]
[1759116406400,45.80741435,4110.2,4110.1,0.3107]
[1759116421633,45.65831435,4110.2,4110.1,0.735]
[1759116422225,45.80691435,4110.2,4110.1,0.735]
[1759116422929,45.65831435,4110.2,4110.1,0.735]
[1759116423430,45.80691435,4110.2,4110.1,0.735]
[1759116424134,45.80691435,4110.2,4110.1,0.5266]
[1759116426533,4.17861435,4110.2,4110.1,0.735]
[1759116426739,0.97081435,4110.2,4110.1,5.735]
[1759116426933,0.53303435,4110.2,4110.1,5.735]
[1759116427123,0.43777,4110.3,4110.2,0.3182]
[1759116427329,0.97253672,4110.3,4110.2,1.7652578]
[1759116429334,3.2078,4110.7,4110.2,1.0227578]
[1759116429637,3.64552,4110.7,4110.6,1.7652578]
[1759116429838,4.1797679,4110.7,4110.6,1.7652578]
[1759116430132,0.9719679,4110.7,4110.6,1.7652578]
[1759116430537,0.43772,4110.7,4110.6,1.7652578]
[1759116432026,0.43772,4110.7,4110.6,0.7425]
[1759116432231,1.03812,4110.7,4110.6,0.5341]
[1759116432834,0.88892,4110.7,4110.6,0.7385]
[1759116433738,0.66402,4110.7,4110.6,0.7385]
[1759116433937,0.43772,4110.7,4110.6,0.7385]
[1759116435041,0.65292,4110.7,4110.6,0.7385]
[1759116435239,1.02702,4110.7,4110.6,0.5341]
[1759116435638,1.56062381,4110.7,4110.6,0.5341]
[1759116436240,1.02702,4110.7,4110.6,0.5341]
[1759116436436,4.23482,4110.7,4110.6,0.3182]
[1759116436643,0.87785,4110.4,4110.3,1.0227578]
[1759116436939,0.65299,4110.1,4110.0,0.12736395]
[1759116437144,1.02709,4110.1,4110.0,0.31246395]
[1759116437536,1.02709,4110.1,4110.0,0.44086395]
[1759116437737,1.02709,4110.1,4110.0,0.31246395]
[1759116437738,1.5606541,4110.1,4110.0,0.31246395]
[1759116437938,1.5606541,4110.1,4110.0,0.00236395]
[1759116438248,1.5606541,4110.1,4110.0,0.31246395]
[1759116441548,1.5606541,4110.1,4110.0,0.44086395]
[1759116442644,42.3606541,4110.1,4110.0,0.00236395]
[1759116443236,42.3606541,4110.1,4110.0,0.31246395]
[1759116443650,42.3606541,4110.1,4110.0,0.44086395]
[1759116445849,42.3606541,4110.1,4110.0,0.64736395]
[1759116447552,42.3606541,4110.1,4110.0,0.31246395]
[1759116447766,42.3606541,4110.1,4110.0,0.00236395]
[1759116449556,42.3606541,4110.1,4110.0,0.31146395]
[1759116450053,42.6056541,4110.1,4110.0,0.64576395]
[1759116451053,42.3606541,4110.1,4110.0,0.64576395]
[1759116451352,42.6056541,4110.1,4110.0,0.64576395]
[1759116451556,42.3606541,4110.1,4110.0,0.64576395]
[1759116451755,42.6056541,4110.1,4110.0,0.64576395]
[1759116452455,42.6056541,4110.1,4110.0,0.43516395]
[1759116453151,42.6056541,4110.1,4110.0,0.00236395]
[1759116454551,42.6056541,4110.1,4110.0,0.31146395]
[1759116455157,1.6564541,4110.1,4110.0,0.85336395]
[1759116455657,1.4114541,4110.1,4110.0,0.85336395]
[1759116455959,1.6564541,4110.1,4110.0,0.85336395]
[1759116458961,1.4315541,4110.1,4110.0,0.85336395]
[1759116459158,1.2163541,4110.1,4110.0,0.85336395]
[1759116459461,1.4265541,4110.1,4110.0,0.85336395]
[1759116463062,1.7907541,4110.1,4110.0,0.64576395]
[1759116464162,1.7907541,4110.1,4110.0,0.00236395]
[1759116464760,1.7907541,4110.1,4110.0,0.31146395]
[1759116465157,3.2078,4110.7,4110.1,0.43779]
[1759116465362,3.64547,4111.3,4111.2,0.7273]
[1759116465662,3.2078,4111.3,4111.2,0.7273]
[1759116467357,0.64781,4111.8,4111.7,0.7273]
[1759116467664,0.64781,4111.8,4111.7,1.61134031]
[1759116468257,0.4572,4111.8,4111.7,1.61134031]
[1759116469262,0.2102,4111.8,4111.7,1.61134031]
[1759116472166,0.4251,4111.8,4111.7,1.61134031]
[1759116473067,0.2102,4111.8,4111.7,1.61134031]
[1759116473265,0.4376,4111.9,4111.7,1.61134031]
[1759116473458,0.4376,4111.9,4111.7,1.30224031]
[1759116473658,0.4376,4111.9,4111.8,0.7273]
[1759116474562,0.6478,4111.9,4111.8,1.61134031]
[1759116474762,0.8597,4111.9,4111.8,1.61134031]
[1759116476967,1.1057,4111.9,4111.8,1.61134031]
[1759116477368,0.8597,4111.9,4111.8,1.61134031]
[1759116477566,1.1057,4111.9,4111.8,1.61134031]
[1759116478867,0.8597,4111.9,4111.8,1.61134031]
[1759116479068,1.1057,4111.9,4111.8,1.61134031]
[1759116480767,0.8597,4111.9,4111.8,1.61134031]
[1759116480971,1.1057,4111.9,4111.8,1.61134031]
[1759116482668,4.09184031,4112.3,4112.2,0.4192]
[1759116482669,3.64535,4112.3,4112.2,0.4192]
[1759116482875,3.89135,4112.3,4112.2,1.61464031]
[1759116484266,3.64535,4112.3,4112.2,1.61464031]
[1759116486573,0.43755,4112.3,4112.2,1.61464031]
[1759116493378,0.43754,4112.4,4112.2,1.61464031]
[1759116493677,0.43754,4112.4,4112.3,0.7464]
[1759116495177,3.64722443,4112.8,4112.7,0.7464]
[1759116495483,3.64722443,4112.8,4112.7,1.63044031]
[1759116495484,0.95634958,4112.8,4112.7,1.63044031]
[1759116495686,0.51884958,4112.8,4112.7,1.63044031]
[1759116497978,0.00192443,4112.8,4112.7,1.63044031]
[1759116515703,0.43712443,4112.8,4112.7,0.7464]
[1759116515892,0.43712443,4112.8,4112.7,0.9914]
[1759116517102,0.43712443,4112.8,4112.7,1.87544031]
[1759116517802,0.58602443,4112.8,4112.7,1.63044031]
[1759116518001,0.58602443,4112.8,4112.5,0.127]
[1759116518002,1.02162,4112.6,4112.5,0.3199]
[1759116518206,1.53833055,4112.6,4112.5,0.6724]
[1759116518396,42.33833055,4112.6,4112.5,0.6724]
[1759116519200,42.18943055,4112.6,4112.5,0.8904]
[1759116519399,41.97233055,4112.6,4112.5,1.9122056]
[1759116519598,41.31671055,4112.6,4112.5,1.9122056]
[1759116519796,0.00192443,4112.8,4112.7,0.7557]
[1759116520402,0.00192443,4112.8,4112.7,1.0007]
[1759116526003,0.00192443,4112.8,4112.7,0.7557]
[1759116526212,0.22002443,4112.8,4112.7,1.7775056]
[1759116529906,0.58602443,4112.8,4112.7,0.7557]
[1759116530106,1.10330713,4112.8,4112.7,0.7557]
[1759116530513,0.95440713,4112.8,4112.7,0.7557]
[1759116531112,0.95440713,4112.8,4112.7,1.7775056]
[1759116535907,1.39190713,4112.8,4112.7,1.7775056]
[1759116546617,1.39190713,4112.8,4112.7,2.2150156]
[1759116547019,0.51920713,4112.8,4112.7,2.2150156]
[1759116549319,0.00192443,4112.8,4112.7,2.2150156]
[1759116564826,0.00192443,4112.8,4112.7,0.7557]
[1759116565028,0.65362443,4112.8,4112.7,0.7557]
[1759116565225,0.87122443,4112.8,4112.7,0.7557]
[1759116566133,1.01822,4112.6,4112.5,0.4642]
[1759116566338,1.53522111,4112.6,4112.5,0.4642]
[1759116566539,1.53522111,4112.6,4112.5,0.6859]
[1759116567239,1.38632111,4112.6,4112.5,0.6859]
[1759116567540,42.18632111,4112.6,4112.5,0.6859]
[1759116568032,42.18632111,4112.6,4112.5,0.9048]
[1759116570539,42.33522111,4112.6,4112.5,0.9048]
[1759116570741,42.33522111,4112.6,4112.5,0.6859]
[1759116571042,42.18632111,4112.6,4112.5,0.6859]
[1759116571838,41.53120111,4112.6,4112.5,0.9048]
[1759116572044,41.89770111,4112.6,4112.5,0.9048]
[1759116572245,1.09770111,4112.6,4112.5,0.9048]
[1759116573945,0.94880111,4112.6,4112.5,0.9048]
[1759116575651,1.09770111,4112.6,4112.5,0.6859]
[1759116575850,1.09770111,4112.6,4112.5,0.3295]
[1759116576538,1.09770111,4112.6,4112.5,0.5512]
[1759116576734,1.19380111,4112.6,4112.5,0.894]
[1759116576937,0.94880111,4112.6,4112.5,0.894]
[1759116577242,1.63132111,4112.6,4112.5,0.894]
[1759116579943,0.51700111,4112.6,4112.5,0.894]
[1759116580246,3.20972443,4112.8,4112.7,0.7701]
[1759116585651,3.42392443,4112.8,4112.7,0.7701]
[1759116587848,3.64152443,4112.8,4112.7,0.7701]
[1759116589456,4.07902443,4112.8,4112.7,0.7701]
[1759116590356,4.5948551,4112.8,4112.7,0.7701]